Workbook

Sheet main
B2: Creating a Credit Card Payoff Spreadsheet
B4: Month | C4: Payment | D4: Interest | E4: Balance | G4: Product Price | H4: 1699
B5: =_xlfn.SEQUENCE(ROUND(H7,0)) -> 1 | C5: =$H$6 -> 160 | D5: =E5*$H$5 -> 292.41 | E5: =H4-C5 -> 1539 | G5: Interest Rate (Yearly) | H5: 0.19
B6: 2 | C6: =$H$6 -> 160 | D6: =E6*$H$5 -> 317.5679 | E6: =E5+D5-C6 -> 1671.41 | G6: Monthly Payment | H6: 160
B7: 3 | C7: 160 | D7: 287.1679 | E7: =E6-C7 -> 1511.41 | G7: No of Payments | H7: =NPER(H5/12,-H6,H4) -> 11.71786296
B8: 4 | C8: 160 | D8: 256.7679 | E8: 1351.41
B9: 5 | C9: 160 | D9: 226.3679 | E9: 1191.41
B10: 6 | C10: 160 | D10: 195.9679 | E10: 1031.41
B11: 7 | C11: 160 | D11: 165.5679 | E11: 871.41
B12: 8 | C12: 160 | D12: 135.1679 | E12: 711.41
B13: 9 | C13: 160 | D13: 104.7679 | E13: 551.41
B14: 10 | C14: 160 | D14: 74.3679 | E14: 391.41
B15: 11 | C15: 160 | D15: 43.9679 | E15: 231.41
B16: 12 | C16: 160 | D16: 13.5679 | E16: 71.41

Sheet Manual
B2: Manually Creating a Credit Card Payoff Spreadsheet
B4: Month | C4: Payment | D4: Interest | E4: Balance | G4: Product Price | H4: 1699
B5: =_xlfn.SEQUENCE(ROUND(H7,0)) -> 1 | C5: =$H$6 -> 180 | D5: =E5*$H$5/12 -> 24.05083333 | E5: =H4-C5 -> 1519 | G5: Interest Rate (Yearly) | H5: 0.19
B6: 2 | C6: =$H$6 -> 180 | D6: =E6*$H$5/12 -> 21.58163819 | E6: =E5+D5-C6 -> 1363.050833 | G6: Monthly Payment | H6: 180
B7: 3 | C7: 180 | D7: 19.07334747 | E7: =E6+D6-C7 -> 1204.632472 | G7: No of Payments | H7: =NPER(H5/12,-H6,H4) -> 10.30415462
B8: 4 | C8: 180 | D8: 16.52534213 | E8: 1043.705819
B9: 5 | C9: 180 | D9: 13.93699338 | E9: 880.2311611
B10: 6 | C10: 180 | D10: 11.30766245 | E10: 714.1681545
B11: 7 | C11: 180 | D11: 8.636700435 | E11: 545.475817
B12: 8 | C12: 180 | D12: 5.923448192 | E12: 374.1125174
B13: 9 | C13: 180 | D13: 3.167236122 | E13: 200.0359656
B14: 10 | C14: 180 | D14: 0.367384027 | E14: 23.20320171
C15: 180 | D15: -2.476799059 | E15: -156.4294143
C16: 180 | D16: -5.366015044 | E16: -338.9062133
C17: 180 | D17: -8.300976949 | E17: -524.2722284
C18: 180 | D18: -11.28240908 | E18: -712.5732053
C19: 180 | D19: -14.31104723 | E19: -903.8556144
C20: 180 | D20: -17.38763881 | E20: -1098.166662
C21: 180 | D21: -20.51294309 | E21: -1295.5543
C22: 180 | D22: -23.68773136 | E22: -1496.067244
C23: 180 | D23: -26.9127871 | E23: -1699.754975
C24: 180 | D24: -30.18890623 | E24: -1906.667762
C25: =$H$6 -> 180 | D25: =E25*$H$5 -> -396.4668748 | E25: =E24-C25 -> -2086.667762
C26: 180 | D26: -430.6668748 | E26: -2266.667762
C27: 180 | D27: -464.8668748 | E27: -2446.667762
C28: 180 | D28: -499.0668748 | E28: -2626.667762
C29: 180 | D29: -533.2668748 | E29: =E28-C29 -> -2806.667762
C30: 180 | D30: -567.4668748 | E30: -2986.667762
C31: 180 | D31: -601.6668748 | E31: -3166.667762
C32: 180 | D32: -635.8668748 | E32: -3346.667762
C33: 180 | D33: -670.0668748 | E33: -3526.667762
C34: 180 | D34: -704.2668748 | E34: -3706.667762
C35: 180 | D35: -738.4668748 | E35: -3886.667762
C36: 180 | D36: -772.6668748 | E36: -4066.667762
C37: 180 | D37: -806.8668748 | E37: -4246.667762
C38: 180 | D38: -841.0668748 | E38: -4426.667762
C39: 180 | D39: -875.2668748 | E39: -4606.667762
C40: 180 | D40: -909.4668748 | E40: -4786.667762
C41: 180 | D41: -943.6668748 | E41: -4966.667762
C42: 180 | D42: -977.8668748 | E42: -5146.667762
C43: 180 | D43: -1012.066875 | E43: -5326.667762
C44: 180 | D44: -1046.266875 | E44: -5506.667762
C45: 180 | D45: -1080.466875 | E45: -5686.667762
C46: 180 | D46: -1114.666875 | E46: -5866.667762
C47: 180 | D47: -1148.866875 | E47: -6046.667762
C48: 180 | D48: -1183.066875 | E48: -6226.667762
C49: 180 | D49: -1217.266875 | E49: -6406.667762
C50: 180 | D50: -1251.466875 | E50: -6586.667762
C51: 180 | D51: -1285.666875 | E51: -6766.667762
C52: 180 | D52: -1319.866875 | E52: -6946.667762
C53: 180 | D53: -1354.066875 | E53: -7126.667762

Sheet Microsoft Template
B2: Credit Card
B3: Payoff Calculator
B5: Balance Owed | C5: 10000 | E5: Months to payoff (Minimum) | H5: =IFERROR((ROUNDUP(NPER(C6/12,-C8,C5,0),0)),"N/A") -> 40
B6: Interest Rate | C6: 0.1 | E6: Months to payoff (Proposed) | H6: =IFERROR(ROUNDUP(NPER(C6/12,-C9,C5,0),0),"N/A") -> 22
B8: Minimum Monthly Payment | C8: 300 | E8: Total interest (Minimum) | H8: =IFERROR(((NPER(C6/12,-C8,C5,0)*C8)-C5),"N/A") -> 1763.95226
B9: Proposed Monthly Payment | C9: 500 | E9: Total interest (Proposed) | H9: =IFERROR(((NPER(C6/12,-C9,C5,0)*C9)-C5),"N/A") -> 984.8107531
B11: Months to Payoff | G11: Total Interest
